bitfinex-derivatives/quotes_ETHF0:USTF0_20250602
["timestamp","ask_amount","ask_price","bid_price","bid_amount"]
[1748891660110,2.30312743,2537.7,2537.4,13.5568]
[1748891660306,2.30312743,2538.1,2537.7,1.96939]
[1748891660497,2.30312743,2538.1,2538.0,0.78766]
[1748891660702,0.78766,2538.0,2537.9,0.78767]
[1748891660905,0.78764,2538.1,2538.0,0.78766]
[1748891661105,3.2078,2538.2,2538.1,0.78763]
[1748891661606,5.52176847,2538.2,2538.1,0.78763]
[1748891661906,2.31987573,2538.3,2538.2,0.7876]
[1748891663107,0.00590726,2538.3,2538.2,0.7876]
[1748891663604,0.00590726,2538.3,2538.2,3.9954]
[1748891676222,0.00590726,2538.3,2537.8,4.6519]
[1748891676516,0.78764,2538.1,2538.0,0.78763]
[1748891676703,0.78762,2538.2,2538.1,0.78762]
[1748891676906,2.03682,2538.2,2538.1,0.78762]
[1748891677310,1.2492,2538.2,2538.1,0.78762]
[1748891677512,2.0368,2538.2,2538.1,0.78762]
[1748891677713,1.2492,2538.2,2538.1,0.78762]
[1748891681419,1.2492,2538.2,2538.1,4.79062]
[1748891683217,1.2492,2538.2,2537.6,1.2837]
[1748891683218,6.42604,2538.2,2537.6,3.2078]
[1748891683415,0.78764,2538.1,2538.0,0.78764]
[1748891683722,2.13154,2538.1,2538.0,0.78764]
[1748891684014,0.78767,2538.0,2537.9,4.003]
[1748891684215,1.3439,2538.0,2537.9,4.003]
[1748891684520,1.3439,2538.0,2537.9,4.79069]
[1748891684720,2.13156,2538.0,2537.9,4.79069]
[1748891685017,2.13156,2538.0,2537.9,4.003]
[1748891685218,2.13156,2538.0,2537.9,4.79069]
[1748891685524,0.78782,2537.6,2537.5,4.003]
[1748891685814,0.78782,2537.6,2537.5,4.79078]
[1748891686322,0.78783,2537.6,2537.5,4.79079]
[1748891686625,1.9362,2537.7,2537.4,0.78781]
[1748891686626,0.78784,2537.5,2537.4,0.78781]
[1748891686919,0.78788,2537.4,2537.3,4.79086]
[1748891687110,3.2078,2537.6,2537.3,4.79086]
[1748891687111,0.78784,2537.5,2537.4,0.78782]
[1748891687310,1.3446,2537.5,2537.4,0.78782]
[1748891687716,2.13242,2537.5,2537.4,0.78782]
[1748891688022,0.78788,2537.4,2537.3,0.78786]
[1748891688216,2.13248,2537.4,2537.3,0.78786]
[1748891688422,2.13248,2537.4,2537.3,4.79086]
[1748891688716,2.13248,2537.4,2537.3,0.78788]
[1748891688917,0.78788,2537.3,2537.2,0.00590726]
[1748891689115,7.65406291,2537.3,2537.2,0.00590726]
[1748891689312,5.34028,2537.3,2537.2,0.00590726]
[1748891689517,0.78794,2537.1,2537.0,4.003]
[1748891689718,0.78805,2536.8,2536.6,4.003]
[1748891689919,1.3446,2536.7,2536.6,4.7911]
[1748891690415,2.13267,2536.7,2536.6,4.7921]
[1748891690611,2.0223,2536.7,2536.6,4.7921]
[1748891690818,2.0223,2536.7,2536.5,4.004]
[1748891691026,0.7881,2536.6,2536.5,4.79212]
[1748891691326,1.2968,2536.6,2536.5,4.79213]
[1748891691623,2.0849,2536.6,2536.5,4.79213]
[1748891692019,2.0849,2536.6,2536.5,0.78813]
[1748891692225,1.2968,2536.6,2536.5,4.79213]
[1748891692717,0.00590726,2536.9,2536.8,0.78803]
[1748891694013,0.00590726,2536.9,2536.8,4.79203]
[1748891694326,0.79390726,2536.9,2536.8,0.78803]
[1748891694526,0.79390726,2536.9,2536.8,4.79203]
[1748891695022,0.7881,2536.6,2536.5,0.78813]
[1748891695225,0.78811,2536.6,2536.5,4.79211]
[1748891695428,0.78819,2536.4,2536.3,0.78818]
[1748891695622,0.78819,2536.4,2536.3,4.79218]
[1748891696023,1.9793,2536.5,2536.3,4.007]
[1748891696222,0.78822,2536.2,2536.1,0.78823]
[1748891696527,0.78822,2536.2,2536.1,4.007]
[1748891696822,3.2078,2536.3,2536.2,0.78822]
[1748891697122,0.78825,2536.2,2536.1,0.78822]
[1748891697316,0.78829,2536.1,2536.0,4.79526]
[1748891697522,0.78832,2536.0,2535.9,0.78829]
[1748891697725,2.15462,2536.0,2535.9,4.79529]
[1748891698423,0.78835,2535.9,2535.8,0.78832]
[1748891698623,1.3663,2535.9,2535.8,4.79532]
[1748891699020,2.15461,2535.9,2535.8,4.79532]
[1748891699220,2.15461,2535.9,2535.8,4.79632]
[1748891699421,3.2078,2536.1,2536.0,0.78828]
[1748891699821,1.2557,2536.2,2535.6,1.971]
[1748891700028,1.2557,2536.0,2535.9,0.78829]
[1748891700332,4.4635,2536.0,2535.4,7.2158]
[1748891700628,0.6739,2535.9,2535.8,0.78835]
[1748891700829,3.2078,2536.4,2535.5,3.94218]
[1748891701025,1.2557,2536.3,2536.2,0.78822]
[1748891701428,2.04389,2536.3,2536.0,4.008]
[1748891701630,1.2557,2536.3,2536.0,4.008]
[1748891701927,1.2557,2536.3,2535.6,1.2422]
[1748891702122,1.2557,2536.3,2536.2,0.78822]
[1748891704032,0.78816,2536.5,2536.1,1.97063]
[1748891704235,0.78816,2536.5,2536.4,0.78815]
[1748891704427,0.78812,2536.6,2536.5,0.78812]
[1748891704624,3.2078,2536.7,2536.6,0.7881]
[1748891706026,0.79392726,2536.9,2536.8,0.78803]
[1748891706533,0.00590726,2536.9,2536.8,0.78803]
[1748891706726,0.00590726,2536.9,2536.8,2.11763]
[1748891706928,0.00590726,2536.9,2536.8,3.42213]
[1748891709032,0.00590726,2536.9,2536.8,1.45953]
[1748891709343,0.79390726,2536.9,2536.8,5.46753]
[1748891709631,0.78803,2536.8,2536.7,4.008]
[1748891710040,0.78815,2536.5,2536.4,0.78813]
[1748891710532,0.78819,2536.3,2536.2,4.79622]
[1748891710732,1.97049,2536.3,2535.7,36.3348]
[1748891710929,0.67,2536.4,2535.9,1.2623]
[1748891711129,3.2078,2536.6,2536.3,0.78819]
[1748891711329,0.78814,2536.6,2536.5,0.78809]
[1748891711534,0.78819,2536.4,2536.3,0.78816]
[1748891711736,0.78824,2536.2,2536.1,0.78821]
[1748891711935,1.97027,2536.6,2536.1,4.008]
[1748891712129,0.78822,2536.3,2536.2,0.7882]
[1748891712329,0.78822,2536.2,2536.1,4.79622]
[1748891712637,0.78818,2536.4,2536.3,0.78816]
[1748891713232,0.00590726,2536.9,2536.5,1.9703]
[1748891713535,0.78806,2536.8,2536.7,0.78803]
[1748891713739,0.78807,2536.7,2536.6,7.37728]
[1748891714035,3.99587,2536.7,2536.6,6.11508]
[1748891714627,3.99587,2536.7,2536.6,2.10708]
[1748891715637,0.78807,2536.7,2536.6,2.10708]
[1748891715937,6.30728636,2536.8,2536.7,0.78807]
[1748891716237,7.61928636,2536.8,2536.7,0.78807]
[1748891716435,0.78807,2536.7,2536.6,2.10707]
[1748891716625,2.10007,2536.7,2536.6,2.10707]
[1748891717029,1.312,2536.7,2536.6,2.10707]
[1748891717434,2.10007,2536.7,2536.6,2.10707]
[1748891718329,1.312,2536.7,2536.6,2.10707]
[1748891719037,3.6268731,2536.7,2536.6,2.10707]
[1748891719338,4.4149431,2536.7,2536.6,2.10707]
[1748891722630,3.6268731,2536.7,2536.6,2.10707]
[1748891722829,2.3148731,2536.7,2536.6,2.10707]
[1748891723036,0.00590726,2536.9,2536.8,0.78803]
[1748891723742,0.00590726,2536.9,2536.8,3.99583]
[1748891724635,0.00590726,2536.9,2536.8,8.99583]
[1748891725132,5.5226731,2537.5,2537.4,0.78785]
[1748891725636,3.2078,2537.5,2537.4,0.78785]
[1748891726039,2.3148731,2537.7,2537.6,0.78779]
[1748891726243,2.3148731,2537.8,2537.7,0.78775]
[1748891726437,3.10849036,2537.9,2537.8,0.78772]
[1748891726645,2.03401726,2537.9,2537.8,0.78772]
[1748891726835,1.24630726,2537.9,2537.8,0.78772]
[1748891727739,0.78782,2537.5,2537.4,4.007]
[1748891727931,3.2078,2537.6,2537.1,0.78793]
[1748891728136,0.78795,2537.2,2537.1,0.78793]
[1748891728532,1.4187,2537.3,2537.2,0.78791]
[1748891729244,0.6308,2537.3,2537.2,0.78791]
[1748891729443,2.70698,2537.3,2537.2,0.78791]
[1748891729946,1.9191,2537.3,2537.2,0.78791]
[1748891730440,2.31346679,2537.5,2537.4,0.78785]
[1748891731343,3.10128679,2537.5,2537.4,0.78785]
[1748891731939,2.31346679,2537.5,2537.4,0.78785]
[1748891732842,0.78788,2537.4,2537.3,0.78786]
[1748891733042,2.12288,2537.4,2537.3,0.78786]
[1748891733543,2.12288,2537.4,2537.3,0.7839185]
[1748891733945,1.335,2537.4,2537.3,0.7839185]
[1748891734146,2.12285,2537.4,2537.3,0.7839185]
[1748891734347,2.31346679,2537.5,2537.4,0.78785]
[1748891734647,0.78782,2537.5,2537.4,0.78785]
[1748891734945,0.78787,2537.4,2537.3,0.78786]
[1748891735344,2.12284,2537.5,2537.4,0.78785]
[1748891735842,20.41484,2537.5,2537.4,0.78785]
[1748891736034,19.627,2537.5,2537.2,0.673]
[1748891736240,0.78788,2537.3,2537.2,1.46089]
[1748891736538,3.10424057,2537.3,2537.2,1.46089]
[1748891736745,4.43094057,2537.3,2537.2,1.46089]
[1748891738440,4.43094057,2537.3,2537.2,0.673]
[1748891738640,0.78791,2537.2,2537.1,0.78792]
[1748891738835,0.78794,2537.1,2537.0,4.79495]
[1748891739138,0.788,2536.9,2536.8,0.6439]
[1748891739343,18.284,2536.9,2536.8,1.43193]
[1748891739545,7.56976529,2537.0,2536.9,0.788]
[1748891739745,0.78803,2536.8,2536.7,4.007]
[1748891739940,27.03471529,2537.0,2536.6,0.00590726]
[1748891739941,0.78807,2536.7,2536.6,0.00590726]
[1748891740145,5.25347,2536.7,2536.6,0.00590726]
[1748891740748,8.97926746,2536.7,2536.6,0.00590726]
[1748891741244,9.15710109,2536.7,2536.6,0.00590726]
[1748891741448,8.97926746,2536.7,2536.6,0.00590726]
[1748891742758,1.97031,2536.6,2536.0,0.78826]
[1748891742954,0.78828,2536.0,2535.9,3.99609]
[1748891743244,19.08127,2536.1,2536.0,0.78828]
[1748891743453,20.31457,2536.1,2536.0,0.78828]
[1748891743747,19.5263,2536.1,2536.0,0.78828]
[1748891743949,2.32232259,2536.3,2536.2,0.78822]
[1748891744251,2.50015655,2536.3,2536.2,0.78822]
[1748891744451,0.00590726,2536.3,2536.2,0.78822]
[1748891745355,0.78822,2536.2,2536.1,0.78824]
[1748891745652,2.11512,2536.2,2536.1,0.78824]
[1748891745844,0.78828,2536.1,2536.0,0.78825]
[1748891746047,0.78831,2536.0,2535.9,0.7883]
[1748891747049,0.96631338,2536.0,2535.9,0.7883]
[1748891747251,0.78831,2536.0,2535.9,0.7883]
[1748891752171,2.11518,2536.1,2536.0,0.78828]
[1748891752964,1.3269,2536.1,2536.0,0.78828]
[1748891753166,0.00590726,2536.3,2536.2,0.78822]
[1748891753859,0.18388764,2536.3,2536.2,0.78822]
[1748891754058,0.79409726,2536.3,2536.2,0.78822]
[1748891755766,0.18388157,2536.3,2536.2,0.78822]
[1748891755963,0.00590726,2536.3,2536.2,0.78822]
[1748891758861,0.79409726,2536.3,2536.2,0.78822]
[1748891759864,0.97211674,2536.3,2536.2,0.78822]
[1748891760070,0.79409726,2536.3,2536.2,0.78822]
[1748891760270,0.00590726,2536.3,2536.2,0.78822]
[1748891763068,0.18395157,2536.3,2536.2,0.78822]
[1748891763268,0.00590726,2536.3,2536.2,0.78822]
[1748891763765,0.78831,2536.0,2535.9,0.78828]
[1748891763972,0.78827,2536.1,2536.0,0.78825]
[1748891764172,0.35603014,2536.1,2536.0,0.78825]
[1748891764378,0.35603014,2536.1,2536.0,3.99605]
[1748891764862,0.35603014,2536.1,2536.0,5.24565]
[1748891765970,1.4e-07,2536.1,2536.0,10.24565]
[1748891766277,3.57991533,2537.1,2537.0,0.78797]
[1748891766466,1.2635,2537.1,2537.0,0.78797]
[1748891766666,3.57991533,2537.1,2537.0,0.78797]
[1748891766864,4.36785533,2537.1,2537.0,0.78797]
[1748891767065,1.2635,2537.1,2537.0,0.78797]
[1748891767267,2.31641533,2537.2,2537.1,0.78794]
[1748891767669,2.50024387,2537.3,2537.2,0.78791]
[1748891768265,0.78791,2537.2,2537.1,3.987]
[1748891768466,0.78797,2537.0,2536.9,0.78799]
[1748891768772,1.45046,2537.1,2537.0,0.78797]
[1748891768971,2.68546,2537.1,2537.0,0.78797]
[1748891769276,1.8975,2537.1,2537.0,0.78797]
[1748891769569,2.68544,2537.1,2537.0,0.78797]
[1748891769971,1.8975,2537.1,2537.0,0.78797]
[1748891770366,2.68544,2537.1,2537.0,0.78797]
[1748891770567,1.8975,2537.1,2537.0,0.78797]
[1748891771268,2.68544,2537.1,2537.0,0.78797]
[1748891771575,5.00320815,2537.1,2537.0,0.78797]
[1748891772173,9.21526815,2537.1,2536.7,0.6798]
[1748891772374,6.31263563,2536.9,2536.8,0.78803]
[1748891772564,2.31681563,2536.9,2536.8,0.78803]
[1748891772769,2.31681563,2536.9,2536.5,1.3416]
[1748891773071,1.2945,2536.8,2536.7,0.78805]
[1748891773276,0.78809,2536.7,2536.6,0.78808]
[1748891773581,2.31681563,2536.7,2536.6,0.78808]
[1748891773771,3.61131563,2536.7,2536.6,0.78808]
[1748891773971,4.39938563,2536.7,2536.6,0.78808]
[1748891774173,3.61131563,2536.7,2536.6,0.78808]
[1748891774574,4.39938563,2536.7,2536.6,0.78808]
[1748891775072,0.78813,2536.6,2536.5,0.78811]
[1748891775275,0.78818,2536.4,2536.3,0.78815]
[1748891775878,4.34420378,2536.4,2536.3,0.78815]
[1748891776078,0.78828,2536.0,2535.9,1.4629]
[1748891776277,3.99608,2536.1,2536.0,0.78828]
[1748891776467,6.31295908,2536.1,2536.0,0.78828]
[1748891776671,7.55115908,2536.1,2536.0,0.78828]
[1748891777276,5.52467908,2536.1,2536.0,0.78828]
[1748891777672,3.2078,2536.1,2536.0,0.78828]
[1748891777974,2.31687908,2536.4,2536.0,10.17849]
[1748891778175,2.31687908,2536.5,2536.4,0.78816]
[1748891778375,2.31687908,2536.6,2536.5,0.78813]
[1748891780373,3.55507908,2536.7,2536.6,0.7881]
[1748891780572,2.31687908,2536.7,2536.6,0.7881]
[1748891780769,0.6268,2536.8,2536.7,0.78807]
[1748891780975,2.31688718,2536.8,2536.5,9.7851]
[1748891781183,2.31688718,2537.0,2536.9,0.788]
[1748891783178,0.78797,2537.0,2536.9,0.788]
[1748891783380,2.14767,2537.0,2536.9,0.788]
[1748891783580,0.78802,2536.9,2536.8,0.78801]
[1748891783781,0.78806,2536.8,2536.7,0.78805]
[1748891784078,0.78806,2536.8,2536.5,9.78712]
[1748891784079,2.31596921,2536.8,2536.5,9.78712]
[1748891784270,3.67566921,2536.8,2536.5,9.78712]
[1748891784478,3.67566921,2536.8,2536.7,0.78803]
[1748891786378,3.67566921,2536.8,2536.5,11.07282]
[1748891786379,2.31596921,2536.9,2536.8,0.78803]
[1748891787182,2.31596921,2536.9,2536.8,0.78804]
[1748891787376,1.3002,2537.0,2536.9,0.788]
[1748891788179,1.9701,2536.8,2536.2,3.2078]
[1748891788381,0.78831,2535.9,2535.8,0.79424726]
[1748891788682,0.78831,2535.9,2535.8,0.00590726]
[1748891789084,2.67791,2535.9,2535.8,0.00590726]
[1748891789579,2.67791,2535.9,2535.8,0.79425726]
[1748891790283,1.8896,2535.9,2535.8,0.79425726]
[1748891790486,3.10461218,2536.1,2536.0,0.78828]
[1748891790679,2.31635218,2536.1,2536.0,3.99608]
[1748891790987,1.8896,2536.2,2536.1,0.78825]
[1748891792081,2.67782,2536.2,2536.1,0.78825]
[1748891792281,1.8896,2536.2,2536.1,0.78825]
[1748891792486,2.67782,2536.2,2536.1,0.78825]
[1748891792683,1.8896,2536.2,2536.1,0.78825]
[1748891792886,2.31635218,2536.3,2536.2,0.78822]
[1748891793486,3.10454218,2536.3,2536.2,0.78822]
[1748891793682,4.34344218,2536.3,2536.2,0.78822]
[1748891794285,3.55525218,2536.3,2536.2,0.78822]
[1748891794487,1.2389,2536.3,2536.2,0.78822]
[1748891794686,0.6639,2536.5,2536.4,0.78816]
[1748891795083,2.31635218,2536.7,2536.6,0.7881]
[1748891795284,0.78807,2536.7,2536.6,0.7881]
[1748891795784,1.3102,2536.7,2536.6,0.7881]
[1748891798691,2.09827,2536.7,2536.6,0.7881]
[1748891798991,1.3102,2536.7,2536.6,0.7881]
[1748891800194,1.46981,2536.9,2536.8,0.78803]
[1748891800388,2.73931,2536.9,2536.8,0.78803]
[1748891801188,3.10434218,2537.0,2536.9,0.788]
[1748891801394,2.31635218,2537.0,2536.9,0.788]
[1748891801588,3.10432218,2537.0,2536.9,0.788]
[1748891801891,3.10432218,2537.1,2537.0,0.78797]
[1748891802091,2.31635218,2537.1,2537.0,0.78797]
[1748891802287,3.10429218,2537.1,2537.0,0.78797]
[1748891802487,4.37379218,2537.1,2537.0,0.78797]
[1748891802692,2.05744,2537.1,2537.0,0.78797]
[1748891803285,4.37379218,2537.1,2537.0,0.78797]
[1748891803490,2.05744,2537.1,2537.0,0.78797]
[1748891804590,4.37379218,2537.1,2537.0,0.78797]
[1748891805788,2.31635218,2537.2,2537.1,0.78794]
[1748891806184,0.18382854,2537.3,2537.2,0.78791]
[1748891811087,2.31635218,2537.7,2537.6,0.78779]
[1748891811290,0.6789,2537.9,2537.6,3.2078]
[1748891811495,0.6789,2537.9,2537.8,0.78772]
[1748891811892,2.31635218,2538.1,2538.0,0.78766]
[1748891812197,0.78763,2538.1,2538.0,0.78766]
[1748891812387,0.78763,2538.1,2538.0,0.78763]
[1748891812388,0.78765,2538.1,2538.0,0.78763]
[1748891813892,3.2078,2538.2,2538.1,0.78763]
[1748891814089,0.00590726,2538.3,2538.2,0.7876]
[1748891814496,0.00590726,2538.3,2538.2,4.7986]
[1748891815296,0.00590726,2538.3,2538.2,9.7986]
[1748891815689,0.00590726,2538.3,2538.2,10.4544]
[1748891819501,0.00590726,2538.3,2538.2,5.4544]
[1748891822096,7.26e-06,2538.3,2538.2,5.4544]
[1748891822502,7.26e-06,2538.3,2538.2,10.4544]
[1748891825500,7.26e-06,2538.3,2538.2,11.5604]
[1748891825700,7.26e-06,2538.3,2538.2,11.86713327]
[1748891826095,7.26e-06,2538.3,2538.2,7.5494]
[1748891826298,7.26e-06,2538.3,2538.2,1.106]
[1748891826507,0.78759726,2538.3,2538.0,3.2078]
[1748891826799,0.78763,2538.1,2538.0,8.00245]
[1748891826999,0.78769,2537.9,2537.8,0.79362726]
[1748891827201,1.9,2538.0,2537.9,0.78769]
[1748891828408,1.2827,2538.0,2537.9,0.78769]
[1748891829606,0.6504,2538.2,2538.1,0.78763]
[1748891829817,7.26e-06,2538.3,2538.2,0.7876]
[1748891830307,1.30710726,2538.3,2538.2,0.7876]
[1748891834414,7.26e-06,2538.3,2538.2,0.7876]
[1748891834719,7.26e-06,2538.3,2538.2,2.0786]
[1748891836606,7.26e-06,2538.3,2538.2,4.7946]
[1748891838305,1.33590726,2538.3,2538.2,4.7946]
[1748891838704,2.12347726,2538.3,2538.2,4.7946]
[1748891839315,1.33590726,2538.3,2538.1,4.007]
[1748891839615,1.33590726,2538.3,2538.2,0.7876]
[1748891840110,7.26e-06,2538.3,2538.2,0.7876]
[1748891840312,7.26e-06,2538.3,2538.2,7.0795]
[1748891840520,7.26e-06,2538.3,2538.2,2.0795]
[1748891843710,7.26e-06,2538.3,2538.2,1.4606]
[1748891844513,7.26e-06,2538.3,2538.2,0.7876]
[1748891845322,0.66530726,2538.3,2538.2,0.7876]
[1748891847115,0.66530726,2538.3,2538.2,3.9954]
[1748891848420,0.66530726,2538.3,2538.2,8.0024]
[1748891850019,1.45287726,2538.3,2538.2,8.0024]
[1748891850223,0.66530726,2538.3,2538.2,8.0024]
[1748891850610,2.03190726,2538.3,2538.2,8.0024]
[1748891850916,7.26e-06,2538.3,2538.2,8.0024]
[1748891855615,7.26e-06,2538.3,2538.2,8.0014]
[1748891856720,5.78757726,2538.3,2538.2,3.2078]
[1748891857021,5.63980726,2538.3,2537.9,3.2078]
[1748891857219,3.63035132,2538.2,2538.1,0.78763]
[1748891857620,1.3075,2538.2,2538.1,0.78763]
[1748891863234,2.0951,2538.2,2538.1,0.78763]
[1748891864029,1.3075,2538.2,2538.1,0.78763]
[1748891864331,1.3075,2538.2,2538.1,4.79363]
[1748891864630,2.0951,2538.2,2538.1,4.79363]
[1748891865024,1.3075,2538.2,2538.1,4.79363]
[1748891866526,1.3075,2538.2,2538.0,0.78764]
[1748891866830,0.78766,2538.0,2537.9,7.2138]
[1748891867225,2.10006,2538.0,2537.9,8.00149]
[1748891870033,1.3124,2538.0,2537.9,8.00149]
[1748891871141,2.10006,2538.0,2537.9,8.00149]
[1748891871437,1.3124,2538.0,2537.9,8.00149]
[1748891872138,2.10006,2538.0,2537.9,8.00149]
[1748891873438,2.10006,2538.0,2537.9,4.79369]
[1748891873739,2.10006,2538.0,2537.9,8.00149]
[1748891873740,1.3124,2538.0,2537.9,8.00149]
[1748891874238,2.10006,2538.0,2537.9,8.00149]
[1748891875034,1.3124,2538.0,2537.9,8.00149]
[1748891877839,1.3124,2538.0,2537.9,4.79369]
[1748891878649,2.32237375,2538.3,2537.9,9.183]
[1748891878942,7.26e-06,2538.3,2538.2,3.9954]
[1748891879239,3.63047375,2538.3,2538.2,3.9954]
[1748891879441,1.30810726,2538.3,2538.2,3.9954]
[1748891880140,7.26e-06,2538.3,2538.2,3.9954]
[1748891880343,7.26e-06,2538.3,2538.2,8.9954]
[1748891881331,7.26e-06,2538.3,2538.2,7.9804]
[1748891888949,7.26e-06,2538.3,2538.2,3.9954]
[1748891889153,7.26e-06,2538.3,2538.2,7.9804]
[1748891895753,7.26e-06,2538.3,2538.2,3.9954]
[1748891896559,1.26810726,2538.3,2538.2,3.9954]
[1748891899859,1.26810726,2538.3,2538.2,0.7876]
[1748891905365,7.26e-06,2538.3,2538.2,3.9954]
[1748891905560,7.26e-06,2538.3,2538.2,4.6351]
[1748891905761,7.26e-06,2538.3,2538.2,6.6016]
[1748891906964,7.26e-06,2538.3,2538.2,5.2737]
[1748891913974,7.26e-06,2538.3,2538.2,6.6247]
[1748891920973,7.26e-06,2538.3,2538.2,5.2737]
[1748891921866,7.26e-06,2538.3,2538.2,6.5302]
[1748891923274,6.94667561,2539.4,2539.3,0.78726]
[1748891923470,0.78735,2539.0,2538.9,3.2078]
[1748891923766,0.78741,2538.9,2538.7,0.78742]
[1748891923972,1.919,2538.8,2538.7,0.78744]
[1748891925072,2.70641,2538.8,2538.7,0.78744]
[1748891925573,1.919,2538.8,2538.7,0.78744]
[1748891925772,2.70641,2538.8,2538.7,0.78744]
[1748891925976,1.919,2538.8,2538.7,0.78744]
[1748891926166,1.919,2538.8,2538.5,0.00590726]
[1748891926475,5.20611378,2538.7,2538.6,0.78747]
[1748891926864,5.20611378,2538.7,2538.5,0.00590726]
[1748891926865,9.41865378,2538.7,2538.5,0.79339726]
[1748891927067,1.3301,2538.6,2538.5,0.79339726]
[1748891927475,7.11757,2538.6,2538.5,0.00590726]
[1748891927669,10.20612378,2538.6,2538.5,0.00590726]
[1748891928078,7.11757,2538.6,2538.5,0.00590726]
[1748891928968,6.3301,2538.6,2538.5,0.79341726]
[1748891929171,1.3301,2538.6,2538.5,0.79341726]
[1748891929376,4.42870736,2538.6,2538.5,0.79341726]
[1748891929572,5.21617736,2538.6,2538.5,0.79341726]
[1748891929977,4.42870736,2538.6,2538.5,0.79341726]
[1748891930178,7.11757,2538.6,2538.5,0.00590726]
[1748891931372,7.11757,2538.6,2538.5,0.79341726]
[1748891933679,7.11757,2538.6,2538.5,0.00590726]
[1748891934077,10.97569183,2538.6,2538.5,0.00590726]
[1748891934278,7.11757,2538.6,2538.5,0.00590726]
[1748891935386,25.33457,2538.6,2538.5,0.00590726]
[1748891936084,25.33457,2538.6,2538.5,0.79341726]
[1748891936085,4.42940476,2538.6,2538.5,0.79341726]
[1748891936387,3.88021622,2539.0,2538.9,0.78738]
[1748891936683,1.36170726,2539.0,2538.9,0.78738]
[1748891937381,0.78738,2538.9,2538.8,3.2078]
[1748891937586,0.78747,2538.7,2538.6,0.78743]
[1748891937782,2.02864,2538.8,2538.7,0.78744]
[1748891940375,1.2412,2538.8,2538.7,0.78744]
[1748891940576,1.2412,2538.8,2538.6,0.78746]
[1748891940782,0.78747,2538.7,2538.6,0.78746]
[1748891941083,0.78747,2538.6,2538.5,0.79338726]
[1748891941384,2.03447,2538.6,2538.5,0.00590726]
[1748891942286,2.03447,2538.6,2538.5,0.79341726]
[1748891942683,2.03447,2538.6,2538.5,0.00590726]
[1748891943185,4.35899826,2538.6,2538.5,0.00590726]
[1748891943976,13.52134484,2538.6,2538.5,0.00590726]
[1748891944184,10.24227,2538.6,2538.5,0.00590726]
[1748891945477,5.24227,2538.6,2538.5,0.00590726]
[1748891946085,0.78772,2537.8,2537.7,1.17749518]
[1748891946283,3.09663766,2537.9,2537.8,0.78772]
[1748891946485,1.3028,2538.0,2537.9,0.78769]
[1748891948789,2.32270956,2538.1,2538.0,0.78766]
[1748891949392,2.32270956,2538.1,2537.9,0.78769]
[1748891949594,0.78766,2538.0,2537.9,0.78769]
[1748891949892,0.78769,2537.9,2537.8,3.8421]
[1748891950094,2.05419,2537.9,2537.8,3.8421]
[1748891950491,2.05419,2537.9,2537.8,4.62982]
[1748891950894,4.37689956,2537.9,2537.8,4.62982]
[1748891951095,3.58920956,2537.9,2537.8,4.62982]
[1748891951291,3.77277956,2538.0,2537.9,0.78769]
[1748891951489,2.98510956,2538.0,2537.9,0.78769]
[1748891951691,0.78769,2537.9,2537.8,4.6298]
[1748891951996,0.78769,2537.9,2537.8,4.62982]
[1748891952195,2.03199,2537.9,2537.8,4.62982]
[1748891953397,4.35469956,2537.9,2537.8,4.62982]
[1748891954097,2.32270956,2537.9,2537.8,4.62982]
[1748891954293,2.32270956,2538.0,2537.9,0.78769]
[1748891954491,2.32270956,2538.1,2538.0,0.78766]
[1748891955098,3.11032956,2538.2,2538.1,0.78763]
[1748891956298,0.78766,2538.1,2538.0,0.78766]
[1748891956500,2.32342353,2538.1,2538.0,0.78766]
[1748891956797,2.32342353,2538.2,2538.1,0.78763]
[1748891958599,2.32342353,2538.4,2538.3,0.78757]
[1748891958797,3.30028063,2538.4,2538.3,0.78757]
[1748891959002,3.11096353,2538.4,2538.3,0.78757]
[1748891959802,4.47096353,2538.4,2538.3,0.78757]
[1748891960702,2.32342353,2538.4,2538.3,0.78757]
[1748891960902,2.32342353,2538.4,2538.3,2.14907]
[1748891961103,3.11096353,2538.4,2538.3,0.78757]
[1748891962904,2.32342353,2538.4,2538.3,0.78757]
[1748891963203,2.32342353,2538.6,2538.5,0.78751]
[1748891963404,3.64657105,2538.6,2538.5,0.78751]
[1748891964003,1.321,2538.6,2538.5,0.78751]
[1748891964206,4.4342782,2538.6,2538.5,0.78751]
[1748891964702,1.321,2538.6,2538.5,3.99531]
[1748891964907,5.91201492,2539.0,2538.5,3.2078]
[1748891965199,5.91201492,2539.0,2538.7,1.96858]
[1748891965200,0.19053927,2538.9,2538.7,1.96858]
[1748891965394,3.10254492,2539.0,2538.9,0.78738]
[1748891965594,0.1964425,2539.0,2538.9,0.78738]
[1748891965793,0.00590726,2539.0,2538.9,2.13038]
[1748891966000,2.33182611,2539.0,2538.9,2.13038]
[1748891966201,2.5223737,2539.0,2538.9,2.13038]
[1748891966897,0.19645485,2539.0,2538.9,2.13038]
[1748891967305,0.19645485,2539.0,2538.9,7.13038]
[1748891967504,0.19645485,2539.0,2538.9,2.13038]
[1748891967705,0.19645485,2539.0,2538.9,7.13038]
[1748891968808,0.38706858,2539.0,2538.9,7.13038]
[1748891969018,0.38707881,2539.0,2538.9,7.13038]
[1748891969717,0.19645485,2539.0,2538.9,7.13038]
[1748891970718,2.32591885,2539.8,2539.7,0.78713]
[1748891970916,2.32591885,2539.9,2539.8,0.7871]
[1748891971717,1.3199,2539.9,2539.8,0.7871]
[1748891972316,3.64115073,2539.9,2539.8,0.7871]
[1748891972705,1.3199,2539.9,2539.8,0.7871]
[1748891972904,2.97675799,2540.1,2540.0,0.78704]
[1748891973118,0.00590726,2540.1,2539.6,0.00590726]
[1748891973318,3.99493,2539.7,2539.6,0.00590726]
[1748891973623,0.78727,2539.3,2539.1,0.78731]
[1748891974117,1.9677,2539.2,2539.1,0.78731]
[1748891975919,2.75499,2539.2,2539.1,0.78731]